[Event "Late-Titled-Tuesday-Blitz-October-17-2023"]
[Site "Chess.com"]
[Date "2023.10.17"]
[Round "5"]
[White "GaiozNigalidze"]
[Black "BogdanDeac"]
[Result "0-1"]
[WhiteElo "2704"]
[BlackElo "2984"]
[TimeControl "180+1"]
[EndTime "14:55:45 PDT"]
[Termination "BogdanDeac won by resignation"]

1. d4 {[%clk 0:03:00.9]} 1... Nf6 {[%clk 0:03:00.3]} 2. c4 {[%clk 0:03:00.9]}
2... g6 {[%clk 0:03:01]} 3. Nf3 {[%clk 0:03:01.2]} 3... Bg7 {[%clk 0:03:00.9]}
4. Nc3 {[%clk 0:03:01.1]} 4... O-O {[%clk 0:03:00.8]} 5. e4 {[%clk 0:03:01.3]}
5... d6 {[%clk 0:03:01.2]} 6. h3 {[%clk 0:03:01.8]} 6... e5 {[%clk 0:03:00.8]}
7. d5 {[%clk 0:03:02.3]} 7... Nh5 {[%clk 0:03:00]} 8. g3 {[%clk 0:03:01.6]} 8...
Na6 {[%clk 0:02:57.5]} 9. Be2 {[%clk 0:03:01.1]} 9... Qe8 {[%clk 0:02:44.1]} 10.
Nd2 {[%clk 0:02:57.7]} 10... Nf6 {[%clk 0:02:29.5]} 11. a3 {[%clk 0:02:57.1]}
11... Nd7 {[%clk 0:02:22]} 12. b4 {[%clk 0:02:48.7]} 12... f5 {[%clk 0:02:21.6]}
13. Qc2 {[%clk 0:02:39.9]} 13... Nf6 {[%clk 0:02:20.8]} 14. Bd3 {[%clk 0:02:34]}
14... c6 {[%clk 0:02:12.5]} 15. Bb2 {[%clk 0:02:24.3]} 15... cxd5 {[%clk
0:02:06.8]} 16. Nxd5 {[%clk 0:02:09.7]} 16... Nxd5 {[%clk 0:01:44.2]} 17. cxd5
{[%clk 0:02:10.6]} 17... Bd7 {[%clk 0:01:44.3]} 18. Qb3 {[%clk 0:01:38.1]} 18...
Ba4 {[%clk 0:01:31.3]} 19. Qa2 {[%clk 0:01:31.9]} 19... Nc7 {[%clk 0:01:29.2]}
20. O-O {[%clk 0:01:09.4]} 20... Nb5 {[%clk 0:01:23.8]} 21. exf5 {[%clk
0:01:00.5]} 21... gxf5 {[%clk 0:01:23.1]} 22. Rae1 {[%clk 0:01:00.6]} 22... Qh5
{[%clk 0:01:01.6]} 23. Kh2 {[%clk 0:00:47.8]} 23... Rae8 {[%clk 0:00:57.1]} 24.
Nc4 {[%clk 0:00:38.8]} 24... Qh6 {[%clk 0:00:41.1]} 25. Qb1 {[%clk 0:00:34.5]}
25... e4 {[%clk 0:00:39.7]} 26. Be2 {[%clk 0:00:32.8]} 26... Nc3 {[%clk
0:00:09.1]} 27. Bxc3 {[%clk 0:00:24.2]} 27... Bxc3 {[%clk 0:00:10]} 28. Rc1
{[%clk 0:00:24.6]} 28... Bd4 {[%clk 0:00:09.6]} 29. b5 {[%clk 0:00:21.3]} 29...
a6 {[%clk 0:00:05]} 30. bxa6 {[%clk 0:00:19.2]} 30... bxa6 {[%clk 0:00:04.8]}
31. Qb4 {[%clk 0:00:19]} 31... Bb5 {[%clk 0:00:05]} 32. a4 {[%clk 0:00:19.6]}
32... Bc5 {[%clk 0:00:04.2]} 33. Qb3 {[%clk 0:00:18.3]} 33... Bxc4 {[%clk
0:00:04.6]} 34. Qxc4 {[%clk 0:00:17.8]} 34... f4 {[%clk 0:00:04.5]} 35. Bg4
{[%clk 0:00:16.9]} 35... Kh8 {[%clk 0:00:02.5]} 36. Qe2 {[%clk 0:00:14.8]} 36...
e3 {[%clk 0:00:02.7]} 37. gxf4 {[%clk 0:00:13.7]} 37... Qxf4+ {[%clk 0:00:02.4]}
38. Kg2 {[%clk 0:00:13.5]} 38... exf2 {[%clk 0:00:03.3]} 39. Qc4 {[%clk
0:00:12.5]} 39... Bd4 {[%clk 0:00:03.1]} 40. Rcd1 {[%clk 0:00:10.8]} 40... Be5
{[%clk 0:00:03.2]} 41. Qxf4 {[%clk 0:00:10.7]} 41... Rxf4 {[%clk 0:00:03.9]} 42.
Rxf2 {[%clk 0:00:11.1]} 42... Rxa4 {[%clk 0:00:04.4]} 43. Re2 {[%clk 0:00:10.3]}
43... Rg8 {[%clk 0:00:03.8]} 44. Kh1 {[%clk 0:00:10.2]} 44... Ra3 {[%clk
0:00:04]} 45. Be6 {[%clk 0:00:10.3]} 45... Rgg3 {[%clk 0:00:03.8]} 46. Rc2
{[%clk 0:00:10.6]} 46... a5 {[%clk 0:00:03.6]} 47. Rc8+ {[%clk 0:00:10.6]} 47...
Kg7 {[%clk 0:00:04]} 48. Rg8+ {[%clk 0:00:11.5]} 48... Kh6 {[%clk 0:00:04.4]}
49. Rxg3 {[%clk 0:00:12.4]} 49... Rxg3 {[%clk 0:00:04.6]} 50. Rb1 {[%clk
0:00:12.7]} 50... a4 {[%clk 0:00:04.8]} 51. Rb7 {[%clk 0:00:12.4]} 51... a3
{[%clk 0:00:04.1]} 52. Ra7 {[%clk 0:00:12.9]} 52... Rb3 {[%clk 0:00:04.1]} 53.
Bf5 {[%clk 0:00:13.1]} 53... Kg5 {[%clk 0:00:02.9]} 54. Bxh7 {[%clk 0:00:13.3]}
54... Rxh3+ {[%clk 0:00:02.3]} 55. Kg2 {[%clk 0:00:12.8]} 55... Rxh7 {[%clk
0:00:03.2]} 56. Rxh7 {[%clk 0:00:12.1]} 56... a2 {[%clk 0:00:03.8]} 57. Rh5+
{[%clk 0:00:11.9]} 57... Kxh5 {[%clk 0:00:03.2]} 58. Kf3 {[%clk 0:00:12.8]}
58... Kg6 {[%clk 0:00:03.6]} 59. Ke4 {[%clk 0:00:13.7]} 59... a1=Q {[%clk
0:00:04.3]} 0-1

[Event "Late-Titled-Tuesday-Blitz-October-17-2023"]
[Site "Chess.com"]
[Date "2023.10.17"]
[Round "5"]
[White "miraitrunks"]
[Black "whiteglovethief"]
[Result "0-1"]
[WhiteElo "2208"]
[BlackElo "2618"]
[TimeControl "180+1"]
[EndTime "14:55:48 PDT"]
[Termination "whiteglovethief won by resignation"]

1. e4 {[%clk 0:02:59.4]} 1... e6 {[%clk 0:03:00.2]} 2. Nc3 {[%clk 0:02:58.7]}
2... d5 {[%clk 0:03:01.1]} 3. Nf3 {[%clk 0:02:59.6]} 3... d4 {[%clk 0:03:00.5]}
4. Ne2 {[%clk 0:02:59.6]} 4... c5 {[%clk 0:03:01.2]} 5. Ng3 {[%clk 0:03:00.1]}
5... Nc6 {[%clk 0:03:00.7]} 6. Bb5 {[%clk 0:03:00.2]} 6... Ne7 {[%clk
0:02:58.3]} 7. O-O {[%clk 0:02:59.8]} 7... a6 {[%clk 0:02:58.6]} 8. Bxc6+ {[%clk
0:03:00.1]} 8... Nxc6 {[%clk 0:02:59.3]} 9. c3 {[%clk 0:03:00.3]} 9... e5 {[%clk
0:02:56.6]} 10. cxd4 {[%clk 0:02:59.9]} 10... cxd4 {[%clk 0:02:54.3]} 11. d3
{[%clk 0:02:59.9]} 11... Be7 {[%clk 0:02:53.1]} 12. Bd2 {[%clk 0:02:57.4]} 12...
a5 {[%clk 0:02:51]} 13. Rc1 {[%clk 0:02:56.9]} 13... O-O {[%clk 0:02:50]} 14.
Qb3 {[%clk 0:02:55.9]} 14... a4 {[%clk 0:02:47]} 15. Qb5 {[%clk 0:02:48.9]}
15... Bd7 {[%clk 0:02:46.7]} 16. Nxe5 {[%clk 0:02:41.8]} 16... Nxe5 {[%clk
0:02:41.3]} 17. Qxe5 {[%clk 0:02:42.7]} 17... Be6 {[%clk 0:02:37.9]} 18. Nh5
{[%clk 0:02:23.5]} 18... Bf6 {[%clk 0:02:30.9]} 19. Nxf6+ {[%clk 0:02:21.9]}
19... gxf6 {[%clk 0:02:31.8]} 20. Qh5 {[%clk 0:02:08.5]} 20... Kh8 {[%clk
0:02:31.7]} 21. f4 {[%clk 0:02:08]} 21... Rg8 {[%clk 0:02:26.1]} 22. f5 {[%clk
0:02:07.9]} 22... Bxa2 {[%clk 0:02:24.6]} 23. Rf3 {[%clk 0:02:07.5]} 23... Rc8
{[%clk 0:02:19.4]} 24. Rxc8 {[%clk 0:01:56.7]} 24... Qxc8 {[%clk 0:02:20.3]} 25.
Rh3 {[%clk 0:01:56.2]} 25... Rg7 {[%clk 0:02:20.4]} 26. Bh6 {[%clk 0:01:55.2]}
26... Rg8 {[%clk 0:02:18.2]} 27. Qh4 {[%clk 0:01:46.9]} 27... Qc6 {[%clk
0:02:10.8]} 28. Rg3 {[%clk 0:01:28.2]} 28... Rc8 {[%clk 0:01:25.6]} 29. Bg7+
{[%clk 0:01:22]} 29... Kg8 {[%clk 0:01:26]} 30. Bxf6+ {[%clk 0:00:59.5]} 30...
Kf8 {[%clk 0:01:25.8]} 31. Qh6+ {[%clk 0:00:56.2]} 31... Ke8 {[%clk 0:01:24.7]}
32. Rg8+ {[%clk 0:00:53.2]} 32... Kd7 {[%clk 0:01:24.9]} 33. Rxc8 {[%clk
0:00:52.7]} 33... Qxc8 {[%clk 0:01:21.7]} 34. Bxd4 {[%clk 0:00:50.2]} 34... Qc2
{[%clk 0:01:17]} 35. Qe3 {[%clk 0:00:46.9]} 35... Qd1+ {[%clk 0:01:13.2]} 36.
Kf2 {[%clk 0:00:46.4]} 36... Bb1 {[%clk 0:01:13.8]} 37. e5 {[%clk 0:00:35.1]}
37... Bxd3 {[%clk 0:01:11.5]} 38. e6+ {[%clk 0:00:33.9]} 38... fxe6 {[%clk
0:01:05.2]} 39. Qxe6+ {[%clk 0:00:28.5]} 39... Kc7 {[%clk 0:01:03.5]} 40. Be5+
{[%clk 0:00:28.2]} 40... Kd8 {[%clk 0:01:01.8]} 41. Bf6+ {[%clk 0:00:16]} 41...
Kc7 {[%clk 0:01:01.9]} 42. Be5+ {[%clk 0:00:16.9]} 42... Kd8 {[%clk 0:01:02.1]}
43. Bf6+ {[%clk 0:00:17.1]} 43... Kc7 {[%clk 0:01:02.4]} 44. Qe7+ {[%clk
0:00:14.8]} 44... Kc6 {[%clk 0:00:59.9]} 45. Qe6+ {[%clk 0:00:15.2]} 45... Kb5
{[%clk 0:00:58]} 46. Qd5+ {[%clk 0:00:15.1]} 46... Ka6 {[%clk 0:00:55.6]} 47.
Qe6+ {[%clk 0:00:13.7]} 47... b6 {[%clk 0:00:53]} 48. Qc8+ {[%clk 0:00:13.2]}
48... Kb5 {[%clk 0:00:51.8]} 49. Qd7+ {[%clk 0:00:12]} 49... Kb4 {[%clk
0:00:48.3]} 50. Bc3+ {[%clk 0:00:11.9]} 50... Kb3 {[%clk 0:00:48.6]} 51. Qe6+
{[%clk 0:00:11.8]} 51... Kc2 {[%clk 0:00:46]} 52. f6 {[%clk 0:00:12.3]} 52...
Qf1+ {[%clk 0:00:42.5]} 53. Kg3 {[%clk 0:00:12.6]} 53... b5 {[%clk 0:00:36.1]}
54. f7 {[%clk 0:00:13]} 54... Bc4 {[%clk 0:00:36.3]} 55. Qe4+ {[%clk 0:00:11]}
55... Kb3 {[%clk 0:00:36.5]} 56. Qe1 {[%clk 0:00:06]} 56... Qxe1+ {[%clk
0:00:34.2]} 57. Bxe1 {[%clk 0:00:06.8]} 57... Bxf7 {[%clk 0:00:34.1]} 58. Bc3
{[%clk 0:00:07.5]} 58... a3 {[%clk 0:00:31.4]} 0-1

[Event "Late-Titled-Tuesday-Blitz-October-17-2023"]
[Site "Chess.com"]
[Date "2023.10.17"]
[Round "5"]
[White "DvaHrasta"]
[Black "krzyzan94"]
[Result "0-1"]
[WhiteElo "2492"]
[BlackElo "2772"]
[TimeControl "180+1"]
[EndTime "14:55:52 PDT"]
[Termination "krzyzan94 won on time"]

1. c4 {[%clk 0:03:00.9]} 1... e5 {[%clk 0:02:59.6]} 2. g3 {[%clk 0:03:00.9]}
2... Nf6 {[%clk 0:02:59.1]} 3. Bg2 {[%clk 0:03:01]} 3... d5 {[%clk 0:02:58.7]}
4. cxd5 {[%clk 0:03:00]} 4... Nxd5 {[%clk 0:02:59.6]} 5. Nf3 {[%clk 0:02:59.8]}
5... Nc6 {[%clk 0:02:59.2]} 6. O-O {[%clk 0:02:59.6]} 6... Nb6 {[%clk
0:02:59.9]} 7. Nc3 {[%clk 0:02:58.5]} 7... Be7 {[%clk 0:02:59.7]} 8. d4 {[%clk
0:02:58.5]} 8... exd4 {[%clk 0:02:55.7]} 9. Nb5 {[%clk 0:02:58.3]} 9... O-O
{[%clk 0:02:48.2]} 10. Nbxd4 {[%clk 0:02:53.8]} 10... Nxd4 {[%clk 0:02:45.6]}
11. Qxd4 {[%clk 0:02:53.5]} 11... Bf6 {[%clk 0:02:43.3]} 12. Qxd8 {[%clk
0:02:44.6]} 12... Rxd8 {[%clk 0:02:44.2]} 13. e4 {[%clk 0:02:43.1]} 13... Nc4
{[%clk 0:02:38.4]} 14. Rb1 {[%clk 0:02:38.3]} 14... Bg4 {[%clk 0:02:33.6]} 15.
b3 {[%clk 0:02:18.5]} 15... Bxf3 {[%clk 0:02:18.6]} 16. Bxf3 {[%clk 0:02:09]}
16... Nd2 {[%clk 0:02:18.8]} 17. Bxd2 {[%clk 0:02:06.5]} 17... Rxd2 {[%clk
0:02:19.7]} 18. a4 {[%clk 0:02:00.3]} 18... c5 {[%clk 0:02:08.1]} 19. Rfd1
{[%clk 0:01:47]} 19... Ra2 {[%clk 0:01:55.8]} 20. Rd7 {[%clk 0:01:39.3]} 20...
Bd4 {[%clk 0:01:55.4]} 21. Rf1 {[%clk 0:01:36.3]} 21... Rb8 {[%clk 0:01:30.7]}
22. e5 {[%clk 0:01:27.3]} 22... Bxe5 {[%clk 0:01:28.5]} 23. Bxb7 {[%clk
0:01:23.3]} 23... a5 {[%clk 0:01:21.8]} 24. Bd5 {[%clk 0:01:21.1]} 24... Rb2
{[%clk 0:01:13]} 25. Rxf7 {[%clk 0:01:11.4]} 25... Kh8 {[%clk 0:01:12.9]} 26.
Re1 {[%clk 0:01:06.5]} 26... Bd4 {[%clk 0:01:07.6]} 27. Ree7 {[%clk 0:01:04.1]}
27... h6 {[%clk 0:01:01.8]} 28. h4 {[%clk 0:01:02.7]} 28... Rd2 {[%clk
0:01:00.3]} 29. Bc4 {[%clk 0:00:59.4]} 29... Rd8 {[%clk 0:00:57.6]} 30. h5
{[%clk 0:00:58.2]} 30... Rb2 {[%clk 0:00:45.3]} 31. Kg2 {[%clk 0:00:55.6]} 31...
Rd2 {[%clk 0:00:33.7]} 32. Ra7 {[%clk 0:00:52.8]} 32... Bc3 {[%clk 0:00:32.8]}
33. Rac7 {[%clk 0:00:46.9]} 33... Bd4 {[%clk 0:00:32.5]} 34. Rb7 {[%clk
0:00:35.3]} 34... Bc3 {[%clk 0:00:23.5]} 35. Rb5 {[%clk 0:00:30.7]} 35... Rc8
{[%clk 0:00:21]} 36. Be6 {[%clk 0:00:27.7]} 36... Re8 {[%clk 0:00:20.7]} 37. Bf5
{[%clk 0:00:23.5]} 37... Bd4 {[%clk 0:00:20]} 38. Bg6 {[%clk 0:00:22.4]} 38...
Ra8 {[%clk 0:00:16.8]} 39. Rxa5 {[%clk 0:00:21.4]} 39... Rd8 {[%clk 0:00:14.8]}
40. Rb5 {[%clk 0:00:21.3]} 40... Ra2 {[%clk 0:00:12.9]} 41. a5 {[%clk
0:00:20.3]} 41... Rc8 {[%clk 0:00:11.5]} 42. Bd3 {[%clk 0:00:18.6]} 42... Rd8
{[%clk 0:00:10.8]} 43. Bc4 {[%clk 0:00:17.5]} 43... Rc8 {[%clk 0:00:09.8]} 44.
Ra7 {[%clk 0:00:14.3]} 44... Rxf2+ {[%clk 0:00:08.5]} 45. Kh3 {[%clk 0:00:14.6]}
45... Rf5 {[%clk 0:00:08.4]} 46. Be6 {[%clk 0:00:12.8]} 46... Rxh5+ {[%clk
0:00:08.4]} 47. Kg2 {[%clk 0:00:13.1]} 47... Rf8 {[%clk 0:00:08.4]} 48. Rf7
{[%clk 0:00:11]} 48... Re8 {[%clk 0:00:08.6]} 49. Bg4 {[%clk 0:00:09.2]} 49...
Rg5 {[%clk 0:00:08.9]} 50. Kh3 {[%clk 0:00:07.5]} 50... h5 {[%clk 0:00:08.6]}
51. Bf3 {[%clk 0:00:06.9]} 51... Be5 {[%clk 0:00:09.1]} 52. g4 {[%clk
0:00:06.4]} 52... hxg4+ {[%clk 0:00:09.5]} 53. Bxg4 {[%clk 0:00:06.7]} 53... Bf6
{[%clk 0:00:09.6]} 54. Rbb7 {[%clk 0:00:04.8]} 54... Re3+ {[%clk 0:00:10.2]} 55.
Kg2 {[%clk 0:00:04.8]} 55... Rxg4+ {[%clk 0:00:10.6]} 56. Kf2 {[%clk 0:00:05.2]}
56... Rc3 {[%clk 0:00:10]} 57. Rb8+ {[%clk 0:00:04]} 57... Kh7 {[%clk 0:00:10]}
58. a6 {[%clk 0:00:04.9]} 58... Bd4+ {[%clk 0:00:10]} 59. Ke2 {[%clk 0:00:04.8]}
59... Rg2+ {[%clk 0:00:10.3]} 60. Kf1 {[%clk 0:00:02.7]} 60... Rh2 {[%clk
0:00:08.5]} 0-1

[Event "Late-Titled-Tuesday-Blitz-October-17-2023"]
[Site "Chess.com"]
[Date "2023.10.17"]
[Round "5"]
[White "wild3000"]
[Black "SCIM"]
[Result "1-0"]
[WhiteElo "2423"]
[BlackElo "2545"]
[TimeControl "180+1"]
[EndTime "14:55:54 PDT"]
[Termination "wild3000 won by resignation"]

1. d4 {[%clk 0:02:46.5]} 1... Nf6 {[%clk 0:02:58.8]} 2. Nf3 {[%clk 0:02:44.7]}
2... c5 {[%clk 0:02:59.7]} 3. e3 {[%clk 0:02:44.1]} 3... cxd4 {[%clk 0:02:59.3]}
4. exd4 {[%clk 0:02:44.1]} 4... g6 {[%clk 0:02:59.1]} 5. Be2 {[%clk 0:02:38.9]}
5... Bg7 {[%clk 0:02:59.3]} 6. O-O {[%clk 0:02:39.4]} 6... O-O {[%clk 0:03:00]}
7. Re1 {[%clk 0:02:39.3]} 7... b6 {[%clk 0:02:59.5]} 8. c3 {[%clk 0:02:37.8]}
8... Bb7 {[%clk 0:03:00]} 9. Bg5 {[%clk 0:02:36.7]} 9... d6 {[%clk 0:02:59.9]}
10. Nbd2 {[%clk 0:02:36.5]} 10... Nbd7 {[%clk 0:03:00.3]} 11. a4 {[%clk
0:02:35.1]} 11... a6 {[%clk 0:02:52.1]} 12. h3 {[%clk 0:02:24.8]} 12... Re8
{[%clk 0:02:50.9]} 13. Nc4 {[%clk 0:02:24.2]} 13... Rc8 {[%clk 0:02:49.6]} 14.
Bf1 {[%clk 0:02:16.8]} 14... Qc7 {[%clk 0:02:46.4]} 15. a5 {[%clk 0:02:09.4]}
15... b5 {[%clk 0:02:45.1]} 16. Ne3 {[%clk 0:02:09.4]} 16... Ne4 {[%clk
0:02:40.9]} 17. Bh4 {[%clk 0:02:05]} 17... Ndf6 {[%clk 0:02:36]} 18. Ng5 {[%clk
0:01:57]} 18... Nxg5 {[%clk 0:02:32.1]} 19. Bxg5 {[%clk 0:01:56.9]} 19... Ne4
{[%clk 0:02:27.8]} 20. Bh4 {[%clk 0:01:48.9]} 20... e6 {[%clk 0:02:25.4]} 21. f3
{[%clk 0:01:40]} 21... Nf6 {[%clk 0:02:23.9]} 22. Ng4 {[%clk 0:01:22.8]} 22...
Nxg4 {[%clk 0:02:22]} 23. hxg4 {[%clk 0:01:22]} 23... Bd5 {[%clk 0:02:15.2]} 24.
Qd2 {[%clk 0:01:15]} 24... Qb7 {[%clk 0:02:14.4]} 25. Bg3 {[%clk 0:01:11.3]}
25... Red8 {[%clk 0:02:12.8]} 26. Bd3 {[%clk 0:01:05.7]} 26... Bc4 {[%clk
0:02:12]} 27. Be4 {[%clk 0:01:03.5]} 27... Bd5 {[%clk 0:02:10.5]} 28. Bf4 {[%clk
0:00:56.1]} 28... Bxe4 {[%clk 0:02:07.3]} 29. Rxe4 {[%clk 0:00:55.2]} 29... e5
{[%clk 0:01:52.2]} 30. Bg5 {[%clk 0:00:46.7]} 30... Re8 {[%clk 0:01:46.6]} 31.
dxe5 {[%clk 0:00:41.2]} 31... dxe5 {[%clk 0:01:45.4]} 32. Rd1 {[%clk 0:00:39]}
32... Qc7 {[%clk 0:01:41.6]} 33. Bh6 {[%clk 0:00:29.7]} 33... Qxa5 {[%clk
0:01:39.2]} 34. Bxg7 {[%clk 0:00:29.8]} 34... Kxg7 {[%clk 0:01:40]} 35. Qe2
{[%clk 0:00:21.5]} 35... Qb6+ {[%clk 0:01:38.6]} 36. Kh2 {[%clk 0:00:20.9]}
36... Rcd8 {[%clk 0:01:32.4]} 37. Rxd8 {[%clk 0:00:20.1]} 37... Qxd8 {[%clk
0:01:33.3]} 38. Rxe5 {[%clk 0:00:17.4]} 38... Qd6 {[%clk 0:01:32.8]} 39. f4
{[%clk 0:00:17.6]} 39... Rxe5 {[%clk 0:01:32.4]} 40. fxe5 {[%clk 0:00:15.9]}
40... Qe6 {[%clk 0:01:33.2]} 41. Kg3 {[%clk 0:00:15.8]} 41... h6 {[%clk
0:01:31.2]} 42. Qe3 {[%clk 0:00:15.3]} 42... Qc4 {[%clk 0:01:28.3]} 43. Qd4
{[%clk 0:00:14.3]} 43... Qc7 {[%clk 0:01:11.8]} 44. Kf3 {[%clk 0:00:13.6]} 44...
Kh7 {[%clk 0:01:10]} 45. b4 {[%clk 0:00:13.5]} 45... Qc6+ {[%clk 0:01:07.2]} 46.
Kg3 {[%clk 0:00:13.6]} 46... Qe6 {[%clk 0:01:03.6]} 47. Qf4 {[%clk 0:00:13]}
47... Kg7 {[%clk 0:01:01.5]} 48. g5 {[%clk 0:00:11.6]} 48... hxg5 {[%clk
0:00:57.4]} 49. Qxg5 {[%clk 0:00:12.5]} 49... Qc4 {[%clk 0:00:57.2]} 50. Qf6+
{[%clk 0:00:11.9]} 50... Kh7 {[%clk 0:00:55.7]} 51. Qh4+ {[%clk 0:00:09.3]}
51... Qxh4+ {[%clk 0:00:53.4]} 52. Kxh4 {[%clk 0:00:10.2]} 52... Kh6 {[%clk
0:00:37.1]} 53. Kg4 {[%clk 0:00:10.3]} 53... Kh7 {[%clk 0:00:34.5]} 54. Kg5
{[%clk 0:00:10.2]} 54... Kg7 {[%clk 0:00:34.7]} 55. g3 {[%clk 0:00:10.5]} 55...
Kg8 {[%clk 0:00:24.8]} 56. Kf6 {[%clk 0:00:10.4]} 56... Kf8 {[%clk 0:00:25]} 57.
g4 {[%clk 0:00:07.9]} 57... Ke8 {[%clk 0:00:21.1]} 58. e6 {[%clk 0:00:07.8]}
58... fxe6 {[%clk 0:00:21]} 59. Kxe6 {[%clk 0:00:08.7]} 59... g5 {[%clk
0:00:15.7]} 60. Kf6 {[%clk 0:00:08.2]} 60... Kf8 {[%clk 0:00:14.9]} 61. Kxg5
{[%clk 0:00:09.1]} 61... Kg7 {[%clk 0:00:15.6]} 62. Kf5 {[%clk 0:00:09.5]} 62...
Kf7 {[%clk 0:00:16.1]} 63. g5 {[%clk 0:00:09.6]} 63... Kg7 {[%clk 0:00:15.2]}
64. g6 {[%clk 0:00:09.9]} 64... a5 {[%clk 0:00:15.5]} 65. bxa5 {[%clk
0:00:09.9]} 1-0

[Event "Late-Titled-Tuesday-Blitz-October-17-2023"]
[Site "Chess.com"]
[Date "2023.10.17"]
[Round "5"]
[White "Hrant_ChessMood"]
[Black "Polish_fighter3000"]
[Result "1/2-1/2"]
[WhiteElo "2935"]
[BlackElo "3057"]
[TimeControl "180+1"]
[EndTime "14:55:58 PDT"]
[Termination "Game drawn by repetition"]

1. d4 {[%clk 0:03:00.9]} 1... Nf6 {[%clk 0:03:00]} 2. c4 {[%clk 0:03:00.9]} 2...
e6 {[%clk 0:02:59.8]} 3. Bf4 {[%clk 0:03:00.5]} 3... b6 {[%clk 0:02:49.9]} 4. a3
{[%clk 0:03:00.1]} 4... Bb7 {[%clk 0:02:47.3]} 5. Nc3 {[%clk 0:03:00.3]} 5... d5
{[%clk 0:02:37.6]} 6. e3 {[%clk 0:03:00.6]} 6... Be7 {[%clk 0:02:33.6]} 7. Nf3
{[%clk 0:03:00.7]} 7... O-O {[%clk 0:02:34.2]} 8. Rc1 {[%clk 0:02:59.8]} 8... c5
{[%clk 0:02:32.4]} 9. cxd5 {[%clk 0:02:54.5]} 9... Nxd5 {[%clk 0:02:25.8]} 10.
Nxd5 {[%clk 0:02:54]} 10... Bxd5 {[%clk 0:02:26.7]} 11. dxc5 {[%clk 0:02:39.4]}
11... bxc5 {[%clk 0:02:19.4]} 12. Bc4 {[%clk 0:02:35.2]} 12... Bxc4 {[%clk
0:02:01.1]} 13. Rxc4 {[%clk 0:02:28.2]} 13... Qa5+ {[%clk 0:01:55.3]} 14. Qd2
{[%clk 0:02:22.3]} 14... Qb5 {[%clk 0:01:55.1]} 15. Qc2 {[%clk 0:02:22.4]} 15...
Nd7 {[%clk 0:01:49.7]} 16. O-O {[%clk 0:02:17.4]} 16... Nb6 {[%clk 0:01:44.9]}
17. Re4 {[%clk 0:02:17.7]} 17... c4 {[%clk 0:01:33.6]} 18. Nd4 {[%clk
0:02:08.4]} 18... Qd7 {[%clk 0:01:29.7]} 19. Nf3 {[%clk 0:01:58.4]} 19... Rfd8
{[%clk 0:00:57.2]} 20. h3 {[%clk 0:01:58.1]} 20... f6 {[%clk 0:00:55.3]} 21. Rd4
{[%clk 0:01:37.1]} 21... Qe8 {[%clk 0:00:52.7]} 22. Rxd8 {[%clk 0:01:32.8]}
22... Rxd8 {[%clk 0:00:53.6]} 23. Bc7 {[%clk 0:01:30.1]} 23... Rc8 {[%clk
0:00:52.8]} 24. Bxb6 {[%clk 0:01:29.2]} 24... axb6 {[%clk 0:00:53.7]} 25. Rd1
{[%clk 0:01:28.8]} 25... f5 {[%clk 0:00:48.4]} 26. e4 {[%clk 0:01:23.2]} 26...
fxe4 {[%clk 0:00:47.3]} 27. Qxe4 {[%clk 0:01:22.8]} 27... Bf6 {[%clk 0:00:47.6]}
28. Ne5 {[%clk 0:01:16.5]} 28... b5 {[%clk 0:00:45.7]} 29. Re1 {[%clk
0:01:12.8]} 29... Rd8 {[%clk 0:00:39.8]} 30. a4 {[%clk 0:01:05]} 30... Bxe5
{[%clk 0:00:28.4]} 31. Qxe5 {[%clk 0:01:03.7]} 31... bxa4 {[%clk 0:00:29]} 32.
Qc5 {[%clk 0:00:52.5]} 32... Rc8 {[%clk 0:00:28.8]} 33. Qd6 {[%clk 0:00:49.4]}
33... Qc6 {[%clk 0:00:22.6]} 34. Rxe6 {[%clk 0:00:23.8]} 34... Qxd6 {[%clk
0:00:20.3]} 35. Rxd6 {[%clk 0:00:24.7]} 35... Rb8 {[%clk 0:00:12.3]} 36. Rd2
{[%clk 0:00:24.7]} 36... Kf7 {[%clk 0:00:11.9]} 37. Re2 {[%clk 0:00:20.2]} 37...
c3 {[%clk 0:00:04.6]} 38. bxc3 {[%clk 0:00:19.5]} 38... a3 {[%clk 0:00:04.9]}
39. Ra2 {[%clk 0:00:11.4]} 39... Rb3 {[%clk 0:00:04.8]} 40. Kh2 {[%clk 0:00:08]}
40... Rxc3 {[%clk 0:00:04]} 41. Re2 {[%clk 0:00:07.3]} 41... Rb3 {[%clk
0:00:03.3]} 42. f4 {[%clk 0:00:05]} 42... Rb4 {[%clk 0:00:03.3]} 43. Ra2 {[%clk
0:00:02.6]} 43... Ra4 {[%clk 0:00:03.1]} 44. Kg3 {[%clk 0:00:03.3]} 44... Ke6
{[%clk 0:00:03.7]} 45. Kf3 {[%clk 0:00:03.4]} 45... Kd5 {[%clk 0:00:04.3]} 46.
g4 {[%clk 0:00:03.9]} 46... Kc4 {[%clk 0:00:04.8]} 47. f5 {[%clk 0:00:03.1]}
47... Kb3 {[%clk 0:00:05]} 48. Ra1 {[%clk 0:00:03.1]} 48... Kb2 {[%clk
0:00:05.6]} 49. Rh1 {[%clk 0:00:03]} 49... a2 {[%clk 0:00:06]} 50. g5 {[%clk
0:00:03.6]} 50... a1=Q {[%clk 0:00:04.3]} 51. Rxa1 {[%clk 0:00:03.2]} 51... Rxa1
{[%clk 0:00:05.2]} 52. Ke4 {[%clk 0:00:03]} 52... Kc3 {[%clk 0:00:04.1]} 53. f6
{[%clk 0:00:01.9]} 53... g6 {[%clk 0:00:02.4]} 54. Ke5 {[%clk 0:00:02.2]} 54...
Ra5+ {[%clk 0:00:02.6]} 55. Ke6 {[%clk 0:00:02.7]} 55... Rxg5 {[%clk 0:00:02.5]}
56. Ke7 {[%clk 0:00:01.7]} 56... Re5+ {[%clk 0:00:02.3]} 57. Kf8 {[%clk
0:00:01.7]} 57... g5 {[%clk 0:00:02.3]} 58. Kg7 {[%clk 0:00:02.6]} 58... h5
{[%clk 0:00:02.4]} 59. Kg6 {[%clk 0:00:02.7]} 59... g4 {[%clk 0:00:02.6]} 60. f7
{[%clk 0:00:02.9]} 60... Re6+ {[%clk 0:00:02.7]} 61. Kg5 {[%clk 0:00:02.3]}
61... Re5+ {[%clk 0:00:02.8]} 62. Kg6 {[%clk 0:00:02.8]} 62... Re6+ {[%clk
0:00:03.1]} 63. Kg5 {[%clk 0:00:03.4]} 63... Re5+ {[%clk 0:00:03.6]} 64. Kg6
{[%clk 0:00:03.8]} 1/2-1/2